fUSD/lending_fUSD_20251211
["ID","MTS","AMOUNT","RATE_DAILY","PERIOD"]
[398180333,1765419033643,-500.0,0.00040794,60]
[398180334,1765419033656,-500.0,0.00040794,60]
[398180335,1765419033668,-500.0,0.00040794,31]
[398180336,1765419033679,-541.29085355,0.00040794,31]
[398180337,1765419033691,-318.13296129,0.00040794,31]
[398180338,1765419033702,-270.25765693,0.00040794,31]
[398180339,1765419033713,-500.0,0.00040794,31]
[398180340,1765419033726,-500.0,0.00040794,31]
[398180341,1765419033736,-500.0,0.00040794,7]
[398180342,1765419033748,-500.0,0.00040794,31]
[398180343,1765419033761,-131.74142413,0.00040794,7]
[398180344,1765419033774,-400.58635861,0.00040794,7]
[398180345,1765419033786,-34.36851562,0.00040794,31]
[398180347,1765419037719,-480.8162296,0.00021109,2]
[398180348,1765419037731,-6119.18252624,0.00039124,2]
[398180349,1765419037773,-419.12847376,0.00039124,2]
[398180350,1765419037784,-268.66432624,0.00040794,31]
[398180351,1765419037828,-196.96715814,0.00040794,31]
[398180352,1765419037839,-173.44145643,0.00040794,31]
[398180353,1765419037849,-80.74643304,0.00040794,31]
[398180354,1765419037862,-415.33111738,0.00040794,31]
[398180355,1765419037872,-500.0,0.00040794,31]
[398180356,1765419037884,-500.0,0.00040794,31]
[398180357,1765419037895,-500.0,0.00040794,31]
[398180358,1765419037909,-527.44674522,0.00040794,31]
[398180359,1765419037919,-514.17326483,0.00040794,31]
[398180360,1765419037930,-500.0,0.00040794,31]
[398180361,1765419037940,-500.0,0.00040794,7]
[398180362,1765419037951,-500.0,0.00040794,31]
[398180363,1765419037961,-500.0,0.00040794,31]
[398180364,1765419037971,-395.20556278,0.00040794,7]
[398180365,1765419037982,-500.0,0.00040794,31]
[398180367,1765419037995,-500.0,0.00040794,31]
[398180369,1765419038005,-500.0,0.00040794,31]
[398180371,1765419038016,-500.0,0.00040794,31]
[398180373,1765419038027,-500.0,0.00040794,31]
[398180375,1765419038037,-500.0,0.00040794,31]
[398180378,1765419038048,-500.0,0.00040794,31]
[398180380,1765419038058,-500.0,0.00040794,31]
[398180382,1765419038069,-500.0,0.00040794,31]
[398180384,1765419038080,-500.0,0.00040794,31]
[398180386,1765419038091,-500.0,0.00040794,31]
[398180388,1765419038101,-500.0,0.00040794,31]
[398180391,1765419038112,-500.0,0.00040794,31]
[398180393,1765419038124,-500.0,0.00040794,31]
[398180395,1765419038136,-500.0,0.00040794,31]
[398180398,1765419038151,-500.0,0.00040794,31]
[398180400,1765419038163,-500.0,0.00040794,31]
[398180402,1765419038175,-500.0,0.00040794,31]
[398180404,1765419038186,-500.0,0.00040794,31]
[398180407,1765419038198,-500.0,0.00040794,31]
[398180409,1765419038209,-500.0,0.00040794,31]
[398180411,1765419038221,-500.0,0.00040794,31]
[398180413,1765419038232,-500.0,0.00040794,31]
[398180416,1765419038243,-500.0,0.00040794,31]
[398180418,1765419038255,-500.0,0.00040794,31]
[398180420,1765419038266,-500.0,0.00040794,31]
[398180422,1765419038277,-500.0,0.00040794,31]
[398180424,1765419038288,-500.0,0.00040794,31]
[398180427,1765419038299,-500.0,0.00040794,31]
[398180429,1765419038310,-500.0,0.00040794,31]
[398180431,1765419038320,-500.0,0.00040794,31]
[398180433,1765419038331,-477.04714704,0.00040794,31]
[398180435,1765419038342,-500.0,0.00040794,31]
[398180437,1765419038352,-500.0,0.00040794,31]
[398180440,1765419038362,-500.0,0.00040794,31]
[398180442,1765419038372,-500.0,0.00040794,31]
[398180444,1765419038381,-500.0,0.00040794,31]
[398180446,1765419038390,-4688.18387482,0.00040795,15]
[398180448,1765419038399,-6137.0,0.00040795,5]
[398180450,1765419038408,-1760.09728254,0.00040795,2]
[398180452,1765419038421,-134276.79893761,0.00040795,2]
[398180454,1765419038432,-533.51284134,0.00040795,2]
[398180456,1765419038443,-114605.87691183,0.00040795,2]
[398180458,1765419038454,-10761.40315731,0.00040795,2]
[398180460,1765419038465,-1451.58554189,0.00040795,2]
[398180463,1765419038480,-10944.79899546,0.00040795,2]
[398180478,1765419039679,-459.875,0.00040795,2]
[398180479,1765419039691,-359.21666726,0.00040795,2]
[398180480,1765419039790,-495.68719811,0.00040795,2]
[398180481,1765419039896,-610.46081219,0.00040795,2]
[398180482,1765419039915,-1098.90301948,0.00040795,2]
[398180483,1765419041208,-303.309002,0.00040795,2]
[398180484,1765419041421,-1090.8050745,0.00040795,2]
[398180498,1765419042799,-2170.09,0.00040795,2]
[398180499,1765419042825,-130237.04163218,0.00040795,2]
[398180500,1765419042839,-86094.52334387,0.00040795,2]
[398180501,1765419042850,-1874.49928913,0.00040795,2]
[398180502,1765419042865,-726.45503838,0.00040795,2]
[398180503,1765419042876,-287.77270845,0.00040795,2]
[398180504,1765419042890,-5231.04005787,0.00040795,2]
[398180505,1765419042901,-45222.84880912,0.00040795,2]
[398180506,1765419042920,-8119.68430853,0.00040795,2]
[398180507,1765419044912,-467.20193732,0.00040795,2]
[398180508,1765419045119,-402.46560804,0.00040795,2]
[398180509,1765419045131,-253.81827718,0.00040795,2]
[398180510,1765419045144,-2727.89505997,0.00040795,2]
[398180511,1765419045159,-521.7277719,0.00040795,2]
[398180529,1765419045609,-14501.92221307,0.00040795,2]
[398180530,1765419045621,-44765.93503795,0.00040795,2]
[398180531,1765419045633,-84738.37579544,0.00040795,2]
[398180532,1765419045646,-52904.37267008,0.00040795,2]
[398180533,1765419045657,-9942.442762,0.00040796,15]
[398180534,1765419045666,-251.0,0.00040834,30]
[398180535,1765419045677,-378.88241079,0.00040837,7]
[398180536,1765419045686,-191.02839444,0.00040846,120]
[398180537,1765419045696,-500.0,0.00040846,60]
[398180538,1765419045705,-23663.91382712,0.00040847,33]
[398180539,1765419045715,-16012.7053853,0.00040847,2]
[398180540,1765419045724,-4118.21285282,0.00040847,2]
[398180541,1765419045735,-84819.38653205,0.00040847,2]
[398180542,1765419045764,-255.8587341,0.00040847,2]
[398180543,1765419045872,-1155.39425,0.00040847,2]
[398180544,1765419045884,-1655.38689592,0.00040847,2]
[398180545,1765419045895,-619.59135763,0.00040847,2]
[398180546,1765419045908,-9074.3,0.00040847,2]
[398180547,1765419045925,-1031.79579359,0.00040847,2]
[398180549,1765419045936,-735.78683965,0.00040847,2]
[398180551,1765419045948,-250.7625048,0.00040847,2]
[398180553,1765419045959,-1801.0,0.00040847,2]
[398180555,1765419064956,180.06197898,0.00027924,2]
[398180599,1765419430075,284.0,0.00017,2]
[398180603,1765419661353,-500.67417234,0.00017973,2]
[398180604,1765419661384,-517.9462685,0.00017973,2]
[398180605,1765419661420,-555.00834675,0.00017973,2]
[398180606,1765419661450,-303.0,0.00017973,2]
[398180607,1765419661481,-250.0,0.0001977,2]
[398180608,1765419661509,-250.0,0.00025326,2]
[398180609,1765419661542,-500.0,0.00030027,2]
[398180616,1765419843406,250.0,0.000202,30]
[398180623,1765419916636,168.22,0.00016712,2]
[398180637,1765420015969,23650.0331512,0.000162,5]
[398180639,1765420054563,-228.61655972,0.00017,2]
[398180645,1765420114179,222.6930729,0.00016999,2]
[398180646,1765420114211,500.0,0.00016999,2]
[398180647,1765420114287,378.90359748,0.00016999,2]
[398180648,1765420114338,461.30874074,0.00016999,2]
[398180649,1765420114492,500.0,0.00016999,2]
[398180650,1765420116518,500.0,0.00016999,2]
[398180651,1765420116719,1770.74724118,0.00016999,2]
[398180652,1765420116749,155.02284031,0.00016999,2]
[398180653,1765420116784,500.0,0.00016999,2]
[398180654,1765420116812,1770.74724118,0.00016999,2]
[398180655,1765420116843,500.0,0.00016999,2]
[398180656,1765420116870,1770.74724118,0.00016999,2]
[398180657,1765420116917,301.44965941,0.00016999,2]
[398180658,1765420116949,1770.74724118,0.00016999,2]
[398180659,1765420116981,500.0,0.00016999,2]
[398180660,1765420117009,460.54853556,0.00016999,2]
[398180661,1765420117031,1310.19870562,0.00016999,2]
[398180662,1765420117061,500.0,0.00016999,2]
[398180663,1765420117090,1770.74724118,0.00016999,2]
[398180664,1765420117127,1770.74724118,0.00016999,2]
[398180665,1765420117163,1770.74724118,0.00016999,2]
[398180666,1765420117195,500.0,0.00016999,2]
[398180667,1765420117226,1770.74724118,0.00016999,2]
[398180668,1765420117261,606.82232966,0.00016999,2]
[398180669,1765420117282,1163.92491152,0.00016999,2]
[398180670,1765420117315,500.0,0.00016999,2]
[398180671,1765420117575,1770.74724118,0.00016999,2]
[398180672,1765420117647,1770.74724118,0.00016999,2]
[398180673,1765420117684,1770.74724118,0.00016999,2]
[398180674,1765420117725,1770.74724118,0.00016999,2]
[398180675,1765420117753,1253.09612376,0.00016999,2]
[398180676,1765420117776,517.65111742,0.00016999,2]
[398180677,1765420117805,1770.74724118,0.00016999,2]
[398180678,1765420117841,1770.74724118,0.00016999,2]
[398180679,1765420117876,1770.74724118,0.00016999,2]
[398180680,1765420117904,1770.74724118,0.00016999,2]
[398180681,1765420117933,1770.74724118,0.00016999,2]
[398180682,1765420117966,628.62267668,0.00016999,2]
[398180683,1765420117988,1142.1245645,0.00016999,2]
[398180684,1765420118018,1770.74724118,0.00016999,2]
[398180685,1765420118052,1770.74724118,0.00016999,2]
[398180686,1765420118097,1770.74724118,0.00016999,2]
[398180687,1765420118132,1770.74724118,0.00016999,2]
[398180688,1765420118166,1770.74724118,0.00016999,2]
[398180689,1765420118195,4.1492296,0.00016999,2]
[398180690,1765420118220,1766.59801158,0.00016999,2]
[398180691,1765420118252,1770.74724118,0.00016999,2]
[398180692,1765420118286,1770.74724118,0.00016999,2]
[398180693,1765420118321,1770.74724118,0.00016999,2]
[398180694,1765420118359,1770.74724118,0.00016999,2]
[398180695,1765420118402,1150.4230237,0.00016999,2]
[398180696,1765420118444,620.32421748,0.00016999,2]
[398180697,1765420118482,1770.74724118,0.00016999,2]
[398180699,1765420118516,1770.74724118,0.00016999,2]
[398180701,1765420118548,1770.74724118,0.00016999,2]
[398180702,1765420118582,1770.74724118,0.00016999,2]
[398180703,1765420118619,172.6748682,0.00016999,2]
[398180704,1765420118643,1598.07237298,0.00016999,2]
[398180705,1765420118685,698.62444482,0.00016999,2]
[398180706,1765420118713,1072.12279636,0.00016999,2]
[398180707,1765420118741,1770.74724118,0.00016999,2]
[398180708,1765420118770,1770.74724118,0.00016999,2]
[398180709,1765420118808,1770.74724118,0.00016999,2]
[398180710,1765420118838,1770.74724118,0.00016999,2]
[398180711,1765420118876,1770.74724118,0.00016999,2]
[398180712,1765420118914,74.15099774,0.00016999,2]
[398180713,1765420118938,1696.59624344,0.00016999,2]
[398180714,1765420118974,1770.74724118,0.00016999,2]
[398180715,1765420119175,1770.74724118,0.00016999,2]
[398180716,1765420119213,1770.74724118,0.00016999,2]
[398180717,1765420119241,1770.74724118,0.00016999,2]
[398180718,1765420119276,1220.42479184,0.00016999,2]
[398180719,1765420119301,550.32244934,0.00016999,2]
[398180720,1765420119336,1770.74724118,0.00016999,2]
[398180721,1765420119365,1770.74724118,0.00016999,2]
[398180722,1765420119405,1770.74724118,0.00016999,2]
[398180723,1765420119440,1770.74724118,0.00016999,2]
[398180724,1765420119514,1770.74724118,0.00016999,2]
[398180725,1765420119571,595.95134476,0.00016999,2]
[398180726,1765420119594,1174.79589642,0.00016999,2]
[398180727,1765420119626,1770.74724118,0.00016999,2]
[398180728,1765420119673,1770.74724118,0.00016999,2]
[398180729,1765420119700,1770.74724118,0.00016999,2]
[398180730,1765420119748,1770.74724118,0.00016999,2]
[398180731,1765420119781,1742.22513886,0.00016999,2]
[398180732,1765420119804,28.52210232,0.00016999,2]
[398180733,1765420119967,328.76113154,0.00015,2]
[398180734,1765420119991,505.7654252,0.00015,2]
[398180735,1765420130735,906.74470798,0.00016999,2]
[398180736,1765420130763,906.74470798,0.00016999,2]
[398180737,1765420130792,906.74470798,0.00016999,2]
[398180738,1765420130831,906.74470798,0.00016999,2]
[398180739,1765420130861,906.74470798,0.00016999,2]
[398180740,1765420130893,906.74470798,0.00016999,2]
[398180741,1765420130936,906.74470798,0.00016999,2]
[398180742,1765420130968,906.74470798,0.00016999,2]
[398180743,1765420130998,906.74470798,0.00016999,2]
[398180744,1765420131029,906.74470798,0.00016999,2]
[398180745,1765420131061,398.27539268,0.00016999,2]
[398180746,1765420131087,508.4693153,0.00016999,2]
[398180747,1765420131121,906.74470798,0.00016999,2]
[398180748,1765420131157,906.74470798,0.00016999,2]
[398180749,1765420131186,906.74470798,0.00016999,2]
[398180750,1765420131231,906.74470798,0.00016999,2]
[398180751,1765420131264,906.74470798,0.00016999,2]
[398180752,1765420131296,906.74470798,0.00016999,2]
[398180753,1765420131336,906.74470798,0.00016999,2]
[398180754,1765420131375,906.74470798,0.00016999,2]
[398180755,1765420131404,906.74470798,0.00016999,2]
[398180756,1765420131433,906.74470798,0.00016999,2]
[398180757,1765420131462,424.0936049,0.00016999,2]
[398180758,1765420131487,482.65110308,0.00016999,2]
[398180759,1765420131525,906.74470798,0.00016999,2]
[398180760,1765420131554,906.74470798,0.00016999,2]
[398180761,1765420131589,906.74470798,0.00016999,2]
[398180762,1765420131618,906.74470798,0.00016999,2]
[398180763,1765420131648,906.74470798,0.00016999,2]
[398180764,1765420131676,906.74470798,0.00016999,2]
[398180765,1765420131706,906.74470798,0.00016999,2]
[398180766,1765420131739,906.74470798,0.00016999,2]
[398180767,1765420131776,906.74470798,0.00016999,2]
[398180768,1765420131807,906.74470798,0.00016999,2]
[398180769,1765420131841,449.91181712,0.00016999,2]
[398180770,1765420131864,456.83289086,0.00016999,2]
[398180771,1765420131893,906.74470798,0.00016999,2]
[398180772,1765420131926,906.74470798,0.00016999,2]
[398180773,1765420131960,906.74470798,0.00016999,2]
[398180774,1765420131990,906.74470798,0.00016999,2]
[398180775,1765420132019,906.74470798,0.00016999,2]
[398180776,1765420132055,906.74470798,0.00016999,2]
[398180777,1765420132086,906.74470798,0.00016999,2]
[398180778,1765420132126,906.74470798,0.00016999,2]
[398180779,1765420132159,906.74470798,0.00016999,2]
[398180780,1765420132188,906.74470798,0.00016999,2]
[398180781,1765420132226,475.73002934,0.00016999,2]
[398180782,1765420132253,431.01467864,0.00016999,2]
[398180783,1765420132287,906.74470798,0.00016999,2]
[398180784,1765420132318,906.74470798,0.00016999,2]
[398180785,1765420132355,906.74470798,0.00016999,2]
[398180786,1765420132386,906.74470798,0.00016999,2]
[398180787,1765420132421,906.74470798,0.00016999,2]
[398180788,1765420132453,906.74470798,0.00016999,2]
[398180789,1765420132488,323.05785787,0.00016999,2]
[398180790,1765420132513,583.68685011,0.00016999,2]
[398180791,1765420145622,500.0,0.00016999,2]
[398180792,1765420146000,500.0,0.00016999,2]
[398180794,1765420146599,500.0,0.00016999,2]
[398180796,1765420147066,500.0,0.00016999,2]
[398180800,1765420147382,500.0,0.00016999,2]
[398180801,1765420147782,500.0,0.00016999,2]
[398180802,1765420148128,500.0,0.00016999,2]
[398180803,1765420148703,44.84022337,0.00016999,2]
[398180804,1765420148726,455.15977663,0.00016999,2]
[398180805,1765420148881,500.0,0.00016999,2]
[398180806,1765420149209,500.0,0.00016999,2]
[398180807,1765420149537,242.74366237,0.00016999,2]
[398180808,1765420149563,257.25633763,0.00016999,2]
[398180809,1765420149855,500.0,0.00016999,2]
[398180810,1765420150192,589.01154471,0.00016999,2]
[398180811,1765420191480,151.11,0.00016689,2]
[398180812,1765420201601,300.0,0.00016999,2]
[398180813,1765420201912,1200.0,0.00016999,2]
[398180814,1765420201993,150.0,0.00016999,2]
[398180815,1765420203091,215.406659,0.00016712,2]
[398180817,1765420217831,630.42602995,0.0001699,2]
[398180819,1765420231781,-21.38344028,0.00017,2]
[398180820,1765420231791,-6882.61759077,0.00017,2]
[398180821,1765420231802,-5196.35401804,0.00017,2]
[398180830,1765420232074,-2610.58,0.00017,2]
[398180831,1765420232100,-3152.51558315,0.00017,2]
[398180832,1765420232113,-6378.37033482,0.00017,2]
[398180834,1765420232126,-1403.84725605,0.00017,2]
[398180836,1765420232140,-1366.96461276,0.00017,2]
[398180841,1765420232175,-108231.4945374,0.00017,2]
[398180843,1765420232186,-18101.79094979,0.00017,2]
[398180846,1765420232197,-634.47129063,0.00017,2]
[398180848,1765420232207,-1848.75756851,0.00017,2]
[398180850,1765420232218,-6889.881243,0.00017,2]
[398180853,1765420232232,-9767.83385312,0.00017,2]
[398180855,1765420232246,-1599.22750367,0.00017,2]
[398180857,1765420232256,-903.63050001,0.00017,2]
[398180859,1765420232267,-265.00000012,0.00017,2]
[398180862,1765420232284,-697.39149,0.00017,2]
[398180865,1765420232297,-717.38573744,0.00017,2]
[398180868,1765420232308,-338.85857324,0.00017,2]
[398180871,1765420232320,-953.31026791,0.00017,2]
[398180874,1765420232331,-310.31,0.00017,2]
[398180885,1765420237788,-518.98264,0.00017,2]
[398180886,1765420237897,-503.93718342,0.00017,2]
[398180887,1765420237909,-292.4804703,0.00017,2]
[398180888,1765420237920,-325206.74961228,0.00017,2]
[398180889,1765420238009,-1749.18564804,0.00017,2]
[398180890,1765420238021,-1658.57091694,0.00017,2]
[398180891,1765420238034,-10501.73318086,0.00017,2]
[398180892,1765420238046,-1471.69715656,0.00017,2]
[398180893,1765420238058,-1298.01987285,0.00017,2]
[398180895,1765420238070,-796.50291439,0.00017,2]
[398180896,1765420238091,-259.1000001,0.00017,2]
[398180910,1765420239862,-1329.12933935,0.00017,2]
[398180911,1765420239876,-453.03737299,0.00017,2]
[398180912,1765420239887,-3114.059706,0.00017,2]
[398180913,1765420239899,-1581.56389031,0.00017,2]
[398180914,1765420239910,-4208.08328946,0.00017,2]
[398180915,1765420239921,-1571.76462505,0.00017,2]
[398180916,1765420239933,-1504.57028234,0.00017,2]
[398180917,1765420239944,-884.79552283,0.00017,2]
[398180918,1765420239955,-3230.07130978,0.00017,2]
[398180919,1765420239966,-44982.33927285,0.00017,2]
[398180920,1765420239977,-4514.51,0.00017,2]
[398180921,1765420239989,-730.0,0.00017,2]
[398180922,1765420240003,-1847.29706136,0.00017,2]
[398180923,1765420240019,-671.44990857,0.00017,2]
[398180924,1765420240030,-90819.8543863,0.00017,2]
[398180925,1765420240043,-752.0900232,0.00017,2]
[398180926,1765420240282,-1427.900885,0.00017,2]
[398180927,1765420240306,-479.47431379,0.00017,2]
[398180928,1765420240320,-695.28994766,0.00017,2]
[398180929,1765420240334,-361.707346,0.00017,2]
[398180944,1765420242935,-636.960009,0.00017,2]
[398180945,1765420242946,-650.87288292,0.00017,2]
[398180946,1765420242957,-392.42322,0.00017,2]
[398180947,1765420242968,-412.05845751,0.00017,2]
[398180948,1765420242979,-1015.95344153,0.00017,2]
[398180949,1765420243010,-72.16068172,0.00017,2]
[398180950,1765420243022,-4334.78576873,0.00017,2]
[398180951,1765420243043,-12836.39382927,0.00017,2]
[398180952,1765420243054,-188198.3840497,0.00017,2]
[398180953,1765420243099,-43587.05689406,0.00017,2]
[398180954,1765420243110,-504.95613233,0.00017,2]
[398180955,1765420243120,-122482.18439308,0.00017,2]
[398180956,1765420243133,-1988.99839046,0.00017,2]
[398180957,1765420243144,-1164.99761564,0.00017,2]
[398180958,1765420243155,-4779.79456686,0.00017,2]
[398180959,1765420243166,-1302.81008527,0.00017,2]
[398180960,1765420243182,-4139.35275217,0.00017,2]
[398180961,1765420243193,-337.27249606,0.00017,2]
[398180967,1765420245785,-422.88,0.00017,2]
[398180968,1765420245796,-452.67875,0.00017,2]
[398180969,1765420245807,-16246.7,0.00017,2]
[398180970,1765420245840,-4300.54880903,0.00017,2]
[398180971,1765420245851,-1057.83701526,0.00017,2]
[398180972,1765420245861,-14218.90041072,0.00017,2]
[398180973,1765420245871,-36383.2792198,0.00017,2]
[398180974,1765420245882,-135082.55191085,0.00017,2]
[398180975,1765420245894,-51050.65947421,0.00017,2]
[398180976,1765420245903,-294.0,0.00017,2]
[398180977,1765420245912,-192.94340285,0.00017599,2]
[398180978,1765420245921,-158.61563288,0.00017599,2]
[398180979,1765420245931,-501.77031973,0.00017973,2]
[398180980,1765420245940,-502.16518626,0.00017973,2]
[398180981,1765420245949,-501.54763951,0.00017973,2]
[398180982,1765420245958,-247.64715354,0.00017973,2]
[398180983,1765420245968,-502.31456142,0.00017973,2]
[398180984,1765420245977,-500.0,0.00017973,2]
[398180985,1765420245986,-504.51895088,0.00017973,2]
[398180986,1765420245995,-500.0,0.00017973,2]
[398180987,1765420246004,-502.35922934,0.00017973,2]
[398180988,1765420246013,-500.64347419,0.00017973,2]
[398180989,1765420246022,-517.37108661,0.00017973,2]
[398180990,1765420246032,-630.42602995,0.0001799,2]
[398180991,1765420246041,-42912.47125634,0.00018,2]
[398180992,1765420246053,-43588.18872184,0.00018,2]
[398180993,1765420246065,-3605.53971555,0.00018,2]
[398180994,1765420246076,-3148.0,0.00018,2]
[398180995,1765420246087,-284.376,0.00018,2]
[398180996,1765420246098,-10276.89826205,0.00018,2]
[398180997,1765420246109,-292.65375561,0.00018,2]
[398180998,1765420246121,-431.69864103,0.00018,2]
[398180999,1765420246133,-2503.20420611,0.00018,2]
[398181000,1765420246143,-582.0582955,0.00018,2]
[398181001,1765420246154,-682.7185601,0.00018,2]
[398181002,1765420246165,-524.87523902,0.00018,2]
[398181004,1765420246176,-1509.34266157,0.00018,2]
[398181006,1765420248604,-420.22282652,0.00018,2]
[398181007,1765420248616,-606.553,0.00018,2]
[398181008,1765420248808,337.13959465,0.000169,2]
[398181009,1765420288466,161.06470812,0.00016999,2]
[398181010,1765420291410,500.0,0.00016999,2]
[398181011,1765420291464,500.0,0.00016999,2]
[398181012,1765420291643,500.0,0.00016999,2]
[398181013,1765420291731,577.45655322,0.00016999,2]
[398181014,1765420342325,2494.0,0.0002,30]
[398181015,1765420384524,-194.99999983,0.00017055,2]
[398181016,1765420505446,504.57961384,0.00016999,2]
[398181017,1765420530342,805.81,0.00017145,3]
[398181022,1765420669990,500.0,0.00016999,2]
[398181023,1765420670257,500.0,0.00016999,2]
[398181024,1765420670520,500.0,0.00016999,2]
[398181025,1765420670766,500.0,0.00016999,2]
[398181026,1765420671019,500.0,0.00016999,2]
[398181029,1765420697366,167.5234327,0.00017917,3]
[398181031,1765420803192,250.0,0.000202,30]
[398181043,1765421103085,150.99999901,0.00013699,2]
[398181048,1765421110634,150.0,0.000162,2]
[398181049,1765421110841,150.0,0.000162,2]
[398181050,1765421110946,150.0,0.00016457,2]
[398181051,1765421111159,150.0,0.00016714,2]
[398181052,1765421111214,150.0,0.00016971,2]
[398181053,1765421111883,150.0,0.000162,2]
[398181054,1765421117625,150.0,0.000165,2]
[398181055,1765421117673,150.0,0.000162,2]
[398181056,1765421117725,150.0,0.000168,2]
[398181057,1765421118524,150.0,0.000162,2]
[398181058,1765421118559,150.0,0.000162,2]
[398181059,1765421118604,150.0,0.00016457,2]
[398181060,1765421118737,150.0,0.00016714,2]
[398181061,1765421118782,150.0,0.00016971,2]
[398181062,1765421121590,150.0,0.000162,2]
[398181063,1765421121662,150.0,0.00016457,2]
[398181064,1765421121730,150.0,0.00016714,2]
[398181065,1765421121774,150.0,0.00016971,2]
[398181066,1765421128660,150.00000001,0.000162,2]
[398181067,1765421129231,151.62186521,0.000162,2]
[398181068,1765421133526,245.95240702,0.000162,2]
[398181069,1765421134997,150.0,0.000162,2]
[398181070,1765421135123,150.0,0.000168,2]
[398181072,1765421144460,152.95,0.00013699,2]
[398181073,1765421149023,484.0,0.00025,120]
[398181080,1765421261001,4023.64172567,0.00017,2]
[398181095,1765421418146,2275.84400209,0.00017,2]
[398181096,1765421418169,7724.15599791,0.00017,2]
[398181104,1765421431901,-300.0,0.00017054,2]
[398181106,1765421431910,-401.62574342,0.00017054,2]
[398181111,1765421431955,-798.37425658,0.00017054,2]
[398181112,1765421431964,-300.0,0.00017054,2]
[398181113,1765421431973,-10449.83220752,0.00017055,2]
[398181114,1765421431985,-1364.71260208,0.00017055,2]
[398181115,1765421432007,-1101.36219616,0.00017055,2]
[398181116,1765421432016,-1331.02746754,0.00017055,2]
[398181117,1765421432025,-1200.0,0.00017099,2]
[398181118,1765421432034,-150.0,0.000171,2]
[398181119,1765421432044,-150.0,0.000171,2]
[398181120,1765421432053,-550.0,0.00017144,2]
[398181121,1765421432062,-200.0,0.00017145,2]
[398181122,1765421432071,-200.0,0.00017145,2]
[398181123,1765421432080,-500.0,0.00017145,2]
[398181124,1765421432090,-500.0,0.00017145,2]
[398181125,1765421432099,-500.0,0.00017145,2]
[398181126,1765421432108,-625.11014971,0.00017145,2]
[398181127,1765421432117,-500.0,0.00017145,2]
[398181128,1765421432126,-301.52292896,0.00017145,2]
[398181129,1765421432136,-151.0,0.00017145,2]
[398181130,1765421432145,-151.0,0.00017145,2]
[398181131,1765421432155,-151.0,0.00017145,2]
[398181134,1765421432330,-151.0,0.00017145,2]
[398181135,1765421432352,-151.0,0.00017145,2]
[398181136,1765421432362,-151.0,0.00017145,2]
[398181137,1765421432371,-151.0,0.00017145,2]
[398181138,1765421432381,-151.0,0.00017145,2]
[398181139,1765421432390,-151.0,0.00017145,2]
[398181140,1765421432400,-151.0,0.00017145,2]
[398181141,1765421432410,-151.0,0.00017145,2]
[398181142,1765421432419,-151.0,0.00017152,2]
[398181143,1765421432429,-178.455,0.00017154,2]
[398181144,1765421432438,-3316.039,0.00017154,2]
[398181145,1765421432448,-61782.54877787,0.00017155,2]
[398181146,1765421432459,-820.10743117,0.00017155,2]
[398181147,1765421432542,-86820.66138865,0.00017155,2]
[398181148,1765421432554,-16003.14111007,0.00017155,2]
[398181149,1765421432564,-12741.10854847,0.00017155,2]
[398181150,1765421432576,-1189.407222,0.00017155,2]
[398181151,1765421432629,-3070.30926541,0.00017155,2]
[398181152,1765421432640,-1483.33288539,0.00017155,2]
[398181159,1765421438051,-305.96311241,0.00017155,2]
[398181160,1765421438105,-743.35134739,0.00017155,2]
[398181161,1765421438159,-476.40016926,0.00017155,2]
[398181162,1765421438172,-407.22196959,0.00017155,2]